bitfinex/quotes_ETHUSD_20250722
["timestamp","ask_amount","ask_price","bid_price","bid_amount"]
[1753203274178,0.002,3720.2,3720.1,1.31766524]
[1753203274364,0.002,3720.2,3720.1,0.5868]
[1753203275065,0.002,3720.2,3720.1,4.8128]
[1753203275266,0.002,3720.2,3720.1,7.50089978]
[1753203275494,0.002,3720.2,3720.1,0.1344]
[1753203275699,0.002,3720.2,3720.1,4.3604]
[1753203276000,0.002,3720.2,3720.1,7.50089978]
[1753203276492,0.002,3720.2,3720.1,4.8108]
[1753203276692,0.002,3720.2,3720.1,4.3584]
[1753203277699,2.69002752,3720.2,3720.1,0.1344]
[1753203277899,0.1344,3720.1,3719.5,4.3564]
[1753203278118,0.002,3720.2,3719.7,2.68831812]
[1753203278278,0.002,3720.2,3719.8,0.1344]
[1753203278477,0.002,3720.2,3719.8,0.5868]
[1753203278891,0.002,3720.2,3719.9,3.14058584]
[1753203279086,0.002,3720.2,3720.1,2.68809978]
[1753203279286,0.002,3720.2,3720.1,3.64829978]
[1753203279583,0.002,3720.2,3720.1,0.9602]
[1753203279913,2.68809978,3720.1,3719.6,0.9602]
[1753203280099,2.68809978,3720.1,3719.7,4.22]
[1753203280428,2.68820174,3720.0,3719.6,0.1344]
[1753203280712,3.13080174,3720.0,3719.7,4.221]
[1753203281012,3.13080174,3720.0,3719.5,4.22]
[1753203281013,2.68838884,3719.7,3719.5,4.22]
[1753203281315,2.68832948,3719.8,3719.5,4.22]
[1753203281488,2.68837175,3719.8,3719.5,4.22]
[1753203281688,3.13103791,3719.7,3719.5,4.219]
[1753203282105,2.68846967,3719.6,3719.3,0.1344]
[1753203282304,2.68841315,3719.7,3719.4,4.219]
[1753203282508,2.68836691,3719.8,3719.4,4.219]
[1753203282981,2.82265483,3719.9,3719.4,4.219]
[1753203283483,3.0,3719.7,3719.4,4.219]
[1753203283701,2.68838975,3719.7,3719.3,0.1344]
[1753203283899,3.0,3719.7,3719.4,4.216]
[1753203284302,6.26526853,3719.9,3719.4,4.216]
[1753203284494,3.0,3719.7,3719.4,4.216]
[1753203284877,0.577,3719.9,3719.4,4.216]
[1753203285080,0.1344,3719.9,3719.4,6.90459027]
[1753203285490,3.38263847,3720.0,3719.4,6.90459027]
[1753203285491,3.12778678,3720.2,3719.6,2.68844899]
[1753203285694,3.12778678,3720.2,3719.5,0.4524]
[1753203285695,3.0,3719.9,3719.5,0.5868]
[1753203285899,0.1344,3720.1,3719.5,0.5868]
[1753203286220,3.0,3719.9,3719.5,4.3474]
[1753203286379,5.6882567,3719.9,3719.5,4.3474]
[1753203286581,0.62621938,3720.1,3719.5,4.213]
[1753203286793,0.4397,3720.2,3719.3,0.1344]
[1753203286794,2.68854286,3719.5,3719.3,0.1344]
[1753203287020,3.0,3719.6,3719.4,4.213]
[1753203287222,5.6884843,3719.6,3719.5,4.213]
[1753203287528,5.6884843,3719.6,3719.3,0.1344]
[1753203287529,3.0,3719.5,3719.3,0.1344]
[1753203287819,3.0,3719.5,3718.7,4.3464]
[1753203287820,0.1344,3719.3,3718.7,4.3464]
[1753203287983,2.82309018,3719.3,3718.8,4.212]
[1753203288183,0.1344,3719.3,3718.9,0.4291]
[1753203288584,3.0,3719.7,3719.1,2.68877743]
[1753203288585,2.68839663,3719.7,3719.1,2.68877743]
[1753203288822,2.68848282,3719.6,3719.2,0.1344]
[1753203288994,2.68854498,3719.5,3719.2,0.1344]
[1753203289318,3.1344,3719.8,3719.2,0.1344]
[1753203289319,2.68848911,3719.6,3719.2,0.1344]
[1753203289519,3.0,3719.6,3719.2,0.1344]
[1753203289679,2.68841704,3719.7,3719.2,0.1344]
[1753203289680,3.1344,3719.8,3719.2,0.1344]
[1753203289884,3.0,3719.8,3719.3,1.1958]
[1753203290102,3.0,3719.8,3719.5,0.1344]
[1753203290103,5.688317,3719.8,3719.5,0.1344]
[1753203290530,3.0,3719.8,3719.3,0.7667]
[1753203290835,5.68846112,3719.6,3719.3,0.1344]
[1753203291037,2.68883788,3719.1,3718.6,0.7667]
[1753203291335,2.68883788,3719.1,3718.7,4.3464]
[1753203291336,2.68882256,3719.1,3718.7,4.3464]
[1753203291633,3.0,3719.3,3718.8,2.68903947]
[1753203291823,2.68869266,3719.3,3718.8,4.212]
[1753203292018,0.1344,3719.4,3718.8,4.212]
[1753203292219,0.1344,3719.4,3718.9,0.4291]
[1753203292422,0.4377,3720.1,3719.0,2.68889486]
[1753203292625,2.6882876,3719.9,3719.3,2.68862889]
[1753203292820,2.8226876,3719.9,3719.3,2.82302889]
[1753203293124,3.1344,3719.9,3719.3,2.82302889]
[1753203293327,3.1344,3719.9,3719.3,0.1344]
[1753203293328,5.82267853,3719.9,3719.3,0.1344]
[1753203293831,0.002,3720.2,3719.4,0.8292]
[1753203294014,0.1344,3720.1,3719.5,0.16128533]
[1753203294229,0.1344,3720.1,3719.5,2.82291733]
[1753203294531,0.002,3720.2,3719.6,2.68844659]
[1753203294717,0.002,3720.2,3719.7,0.1344]
[1753203295100,0.002,3720.2,3719.9,3.49398454]
[1753203295405,0.002,3720.2,3720.1,2.82249978]
[1753203295640,0.002,3720.2,3720.1,7.03249978]
[1753203296139,0.002,3720.2,3720.1,7.46159978]
[1753203298350,0.002,3720.2,3720.1,7.45859978]
[1753203299802,0.002,3720.2,3720.1,7.09299978]
[1753203300413,0.002,3720.2,3720.1,3.25159978]
[1753203300631,0.002,3720.2,3720.1,7.45659978]
[1753203302109,0.002,3720.2,3720.1,3.25159978]
[1753203302447,0.002,3720.2,3720.1,8.12615821]
[1753203305211,0.002,3720.2,3720.1,8.89645821]
[1753203305911,0.002,3720.2,3720.1,19.96163911]
[1753203306407,0.002,3720.2,3720.1,20.51163911]
[1753203307943,1e-08,3720.2,3720.1,20.51163911]
[1753203308851,0.002,3720.9,3720.8,3.44719406]
[1753203309051,0.002,3720.9,3720.8,8.05060874]
[1753203309214,0.002,3720.9,3720.8,9.06631999]
[1753203310264,0.002,3720.9,3720.8,9.61631999]
[1753203313061,0.002,3721.0,3720.9,3.47452183]
[1753203313226,0.002,3721.0,3720.9,3.75233578]
[1753203313422,1e-08,3721.0,3720.9,6.74962336]
[1753203313730,1e-08,3721.0,3720.9,6.72274815]
[1753203315521,1e-08,3721.0,3720.9,10.90974815]
[1753203315717,1e-08,3721.0,3720.9,10.90878616]
[1753203317858,1e-08,3721.0,3720.9,6.72178616]
[1753203318022,1e-08,3721.0,3720.9,10.90378616]
[1753203318851,0.002,3721.6,3721.5,3.23708853]
[1753203319049,0.002,3721.6,3721.5,20.21748643]
[1753203319262,0.002,3721.6,3721.5,20.76171555]
[1753203319626,14.5,3724.3,3722.0,3.23672756]
[1753203319959,0.4397,3723.5,3722.5,0.7863]
[1753203320138,0.4397,3723.5,3722.9,0.1336]
[1753203320139,2.68587167,3723.2,3722.9,0.1336]
[1753203320337,3.26121735,3723.4,3722.9,0.1336]
[1753203320338,0.4419,3723.1,3723.0,4.43197675]
[1753203320849,0.4397,3723.5,3723.0,4.4588368]
[1753203321156,0.4397,3723.5,3723.2,0.1336]
[1753203321327,0.4397,3723.5,3723.3,4.43197675]
[1753203321524,0.4419,3723.7,3723.5,2.6856174]
[1753203321756,0.4419,3723.7,3723.6,4.43097675]
[1753203322066,0.4397,3723.9,3723.6,4.43097675]
[1753203322269,0.4397,3723.9,3723.7,0.24997675]
[1753203322438,0.4397,3723.9,3723.4,0.1336]
[1753203322439,0.4419,3723.8,3723.4,0.1336]
[1753203322640,0.4419,3723.8,3723.5,7.11693622]
[1753203322841,0.4419,3723.8,3723.6,0.24929384]
[1753203323071,0.4419,3723.8,3723.7,4.43129384]
[1753203324249,3.49757079,3723.8,3723.7,0.24929384]
[1753203324464,2.68583842,3723.3,3723.0,4.182]
[1753203324757,0.4419,3723.3,3723.0,4.3156]
[1753203324961,3.0,3723.5,3723.1,0.24916998]
[1753203325135,0.4419,3723.4,3723.2,4.43116998]
[1753203325340,0.5733,3723.6,3723.3,0.24916998]
[1753203325544,3.4419,3723.5,3723.4,0.24916998]
[1753203325735,3.12754522,3723.5,3723.4,4.43116998]
[1753203325936,2.68564522,3723.5,3723.4,4.181]
[1753203326136,0.4419,3723.5,3723.0,0.1336]
[1753203326334,2.68583162,3723.3,3723.1,4.43016687]
[1753203326537,3.32450063,3723.3,3723.2,0.24916687]
[1753203326776,3.32450063,3723.3,3723.2,4.43016687]
[1753203327186,3.76640063,3723.3,3723.2,4.43018363]
[1753203327575,7.20610063,3723.3,3723.2,0.24918363]
[1753203327881,7.20610063,3723.3,3722.8,4.18]
[1753203327882,4.52026901,3723.3,3722.8,4.18]
[1753203328170,0.1336,3723.0,3722.9,0.24924624]
[1753203328370,0.5755,3723.0,3722.9,0.24924624]
[1753203328855,0.4419,3723.0,3722.9,0.24924624]
[1753203329057,0.8816,3723.3,3722.9,0.24924624]
[1753203329240,0.4397,3723.3,3723.0,0.24924624]
[1753203329575,0.4419,3723.2,3723.1,4.42924624]
[1753203329777,0.1336,3723.4,3723.1,4.42924624]
[1753203330090,0.4419,3723.6,3723.2,0.24924624]
[1753203330392,3.1277111,3723.3,3723.1,4.3126]
[1753203330544,2.6858111,3723.3,3723.2,0.24940597]
[1753203331167,7.10724889,3723.3,3723.2,0.24940597]
[1753203331366,2.6860059,3723.0,3722.9,4.178]
[1753203331565,6.2615059,3723.0,3722.9,0.24944324]
[1753203332443,6.7012059,3723.0,3722.9,0.24944324]
[1753203332672,2.68631368,3722.6,3721.2,2.68724295]
[1753203332975,6.8115059,3723.0,3721.5,0.1336]
[1753203332976,2.82027436,3722.1,3721.5,0.1336]
[1753203333678,0.4419,3722.0,3721.5,0.1336]
[1753203333864,2.68675171,3722.0,3721.5,0.1336]
[1753203334036,0.1336,3722.1,3721.7,2.68689666]
[1753203334470,0.5755,3722.1,3721.8,2.68681159]
[1753203334680,0.1336,3722.1,3721.8,2.68681159]
[1753203334843,0.1336,3722.1,3721.1,2.68733594]
[1753203334844,0.8816,3722.0,3720.8,1.05098719]
[1753203335042,0.1336,3721.8,3721.3,2.68718668]
[1753203335279,0.4419,3721.7,3721.4,4.188]
[1753203335603,0.1336,3722.2,3721.8,2.68686481]
[1753203335751,0.1336,3722.2,3721.9,6.87477157]
[1753203336339,0.1336,3722.2,3721.9,6.87477485]
[1753203336544,0.5755,3722.2,3721.9,4.188]
[1753203337482,0.81206526,3722.1,3721.9,4.186]
[1753203337677,0.16045805,3722.2,3721.9,4.186]
[1753203337978,0.4419,3722.0,3721.9,4.186]
[1753203338274,0.4419,3722.0,3721.9,4.185]
[1753203338477,0.4419,3722.0,3721.6,0.1336]
[1753203338680,0.4419,3722.0,3721.9,4.185]
[1753203339266,3.12867216,3722.0,3721.2,2.68724502]
[1753203339472,1.50100254,3722.0,3721.6,2.68701379]
[1753203339678,0.4419,3721.9,3721.7,4.185]
[1753203340282,1.05910254,3722.0,3721.7,4.185]
[1753203340605,0.4419,3721.8,3721.7,4.185]
[1753203341277,0.1336,3722.0,3721.8,2.68685138]
[1753203341479,0.1336,3722.0,3721.7,6.87192157]
[1753203341682,0.1336,3722.0,3721.8,2.6868649]
[1753203341877,0.1336,3722.0,3721.7,6.87192839]
[1753203342080,0.1336,3722.0,3721.8,2.68682408]
[1753203342285,0.002,3722.2,3722.1,2.68665538]
[1753203342459,0.002,3722.2,3722.1,6.86765538]
[1753203342665,0.002,3722.2,3722.1,7.30515538]
[1753203342864,0.002,3722.2,3722.1,3.25775538]
[1753203343069,0.8836,3722.2,3720.9,0.4385]
[1753203343263,0.8836,3722.2,3721.5,2.68702235]
[1753203343264,0.4419,3722.1,3721.5,2.68702235]
[1753203343466,0.4417,3722.2,3721.6,4.46370224]
[1753203344186,0.4419,3722.1,3721.7,4.195]
[1753203344389,2.68681198,3721.9,3721.7,4.195]
[1753203344702,3.12871198,3721.9,3721.8,0.25056005]
[1753203344883,2.68681198,3721.9,3721.8,0.25056005]
[1753203345566,3.12871198,3721.9,3721.8,0.25056005]
[1753203345998,0.4419,3721.9,3721.8,0.25056005]
[1753203346299,2.68667803,3722.1,3721.8,0.25056005]
[1753203346478,2.68672756,3722.0,3721.9,0.25056005]
[1753203346795,3.12862756,3722.0,3721.9,0.25056005]
[1753203347766,6.77897788,3722.0,3721.9,0.25056005]
[1753203348014,6.77897788,3722.0,3720.9,0.001]
[1753203348015,3.12714961,3721.0,3720.9,0.001]
[1753203348573,3.59454961,3721.0,3720.9,0.001]
[1753203349295,0.9071,3721.0,3720.9,0.001]
[1753203349514,3.59454961,3721.0,3720.9,0.001]
[1753203349677,0.9071,3721.0,3720.9,0.001]
[1753203350007,0.4397,3721.0,3720.9,0.001]
[1753203350570,3.48659063,3721.0,3720.9,0.001]
[1753203350772,3.95399063,3721.0,3720.9,0.001]
[1753203351173,6.95399063,3721.0,3720.9,0.001]
[1753203351382,6.95399063,3721.0,3720.9,1e-08]
[1753203351809,11.14999063,3721.0,3720.9,1e-08]
[1753203352809,6.95399063,3721.0,3720.9,1e-08]
[1753203353077,11.15099063,3721.0,3720.9,1e-08]
[1753203353597,6.95399063,3721.0,3720.9,1e-08]
[1753203353920,11.15099063,3721.0,3720.9,1e-08]
[1753203354216,6.95399063,3721.0,3720.9,1e-08]
[1753203354371,11.28459063,3721.0,3720.9,1e-08]
[1753203356575,10.81419063,3721.0,3720.9,1e-08]
[1753203357075,11.28159063,3721.0,3720.9,1e-08]
[1753203357475,8.12674102,3721.0,3720.9,1e-08]
[1753203357694,6.62019063,3721.0,3720.9,1e-08]
[1753203357891,10.81219063,3721.0,3720.9,1e-08]
[1753203359116,3.93274102,3721.0,3720.9,1e-08]
[1753203359318,10.01304961,3721.0,3720.9,1e-08]
[1753203359523,10.48044961,3721.0,3720.9,1e-08]
[1753203360922,7.3216,3721.0,3720.9,1e-08]
[1753203361284,10.00904961,3721.0,3720.9,1e-08]
[1753203361487,10.47644961,3721.0,3720.9,1e-08]
[1753203362421,11.88806357,3721.0,3720.9,1e-08]
[1753203363610,11.42066357,3721.0,3720.9,1e-08]
[1753203364121,10.00704961,3721.0,3720.9,1e-08]
[1753203364622,10.47444961,3721.0,3720.9,1e-08]
[1753203367724,3.1336,3721.0,3720.9,1e-08]
[1753203367909,7.3186,3721.0,3720.9,1e-08]
[1753203368296,3.1336,3721.0,3720.9,1e-08]
[1753203368619,7.3166,3721.0,3720.9,1e-08]
[1753203369192,10.00404961,3721.0,3720.9,1e-08]
[1753203369733,7.3166,3721.0,3720.9,1e-08]
[1753203369900,10.00404961,3721.0,3720.9,1e-08]
[1753203370385,5.82104961,3721.0,3720.9,1e-08]
[1753203370589,10.00104961,3721.0,3720.9,1e-08]
[1753203372127,7.3136,3721.0,3720.9,1e-08]
[1753203372322,10.00104961,3721.0,3720.9,1e-08]
[1753203373224,10.00004961,3721.0,3720.9,1e-08]
[1753203373534,9.99804961,3721.0,3720.9,1e-08]
[1753203374039,5.82104961,3721.0,3720.9,1e-08]
[1753203374204,9.99804961,3721.0,3720.9,1e-08]
[1753203376495,12.08405522,3721.0,3720.9,1e-08]
[1753203377093,12.63405522,3721.0,3720.9,1e-08]
[1753203379168,7.90705522,3721.0,3720.9,1e-08]
[1753203379443,12.08005522,3721.0,3720.9,1e-08]
[1753203379607,12.08105522,3721.0,3720.9,1e-08]
[1753203381833,11.61565522,3721.0,3720.9,1e-08]
[1753203382131,8.61465522,3721.0,3720.9,1e-08]
[1753203382333,12.08005522,3721.0,3720.9,1e-08]
[1753203385240,12.63005522,3721.0,3720.9,1e-08]
[1753203386231,12.63205522,3721.0,3720.9,1e-08]
[1753203386616,42.63205522,3721.0,3720.9,1e-08]
[1753203387143,2.6885334,3719.5,3719.4,0.001]
[1753203387441,9.8645334,3719.5,3719.4,0.001]
[1753203387831,10.3299334,3719.5,3719.4,0.001]
[1753203388027,5.6885334,3719.5,3719.4,0.001]
[1753203388226,7.176,3719.5,3719.4,0.437]
[1753203388437,9.8645334,3719.5,3719.4,0.437]
[1753203388637,7.176,3719.5,3719.4,0.437]
[1753203388807,9.8645334,3719.5,3719.4,0.437]
[1753203389443,7.176,3719.5,3719.4,0.437]
[1753203389737,7.176,3719.5,3719.4,1.2101]
[1753203391109,4.176,3719.5,3719.4,1.34465]
[1753203391311,4.176,3719.5,3719.4,4.03325568]
[1753203391656,4.176,3720.1,3719.9,0.832]
[1753203391810,3.0,3720.0,3719.9,0.832]
[1753203392013,2.6871487,3721.5,3719.9,0.832]
[1753203392256,0.002,3721.0,3719.9,3.68146481]
[1753203392459,0.002,3721.0,3720.7,0.7974]
[1753203392665,0.002,3721.0,3720.8,0.1336]
[1753203392952,3.002,3721.0,3720.8,0.5696]
[1753203393110,4.20285805,3720.9,3720.1,0.7595]
[1753203393313,0.1336,3720.8,3720.2,0.436]
[1753203393547,4.176,3720.9,3720.5,2.68775393]
[1753203393745,4.176,3720.9,3720.7,0.7595]
[1753203394128,4.176,3720.9,3720.8,0.436]
[1753203394322,4.178,3721.0,3720.7,0.7595]
[1753203394520,4.178,3721.0,3720.0,2.68816808]
[1753203394521,2.68759406,3720.8,3720.4,0.436]
[1753203394747,0.02685805,3720.7,3720.4,0.436]
[1753203395062,0.02685805,3720.7,3720.5,0.436]
[1753203395266,0.002,3721.0,3720.6,2.68772199]
[1753203395616,0.002,3721.0,3720.9,2.68752183]
[1753203395818,0.002,3721.0,3720.9,0.754]
[1753203396131,0.002,3721.0,3720.9,3.87752183]
[1753203399265,0.002,3721.0,3720.9,4.42752183]
[1753203399418,0.002,3721.0,3720.9,15.50017013]
[1753203399620,0.002,3721.8,3721.7,3.49694413]
[1753203400170,0.002,3721.8,3721.7,3.93294413]
[1753203401457,0.002,3721.8,3721.7,8.10794413]
[1753203403777,0.002,3721.8,3721.7,3.93294413]
[1753203404058,0.002,3721.8,3721.5,0.7609]
[1753203404425,0.002,3721.8,3721.5,1.29799]
[1753203404753,2.68891112,3721.8,3721.3,4.174]
[1753203404928,2.68891909,3721.8,3721.3,4.174]
[1753203405123,0.002,3721.8,3721.4,0.436]
[1753203405323,2.6888789,3721.8,3721.4,0.436]
[1753203405552,0.002,3721.8,3721.4,0.436]
[1753203405927,0.002,3721.8,3721.5,0.436]
[1753203406451,0.002,3721.8,3721.7,0.1336]
[1753203407055,0.002,3721.8,3721.1,0.8129]
[1753203407056,2.68706927,3721.6,3721.1,0.8129]
[1753203407262,2.68714133,3721.5,3721.2,0.1336]
[1753203407423,2.68704101,3721.6,3721.2,0.1336]
[1753203407624,2.68754963,3720.9,3720.7,0.7555]
[1753203407824,3.0,3721.0,3720.7,0.1336]
[1753203408055,5.68738798,3721.1,3720.7,0.1336]
[1753203408256,0.45775805,3721.0,3720.3,0.7555]
[1753203408424,0.5645,3721.0,3720.4,0.1336]
[1753203408836,0.1336,3721.0,3720.4,2.82146724]
[1753203409059,3.1336,3721.0,3720.5,2.68779351]
[1753203409463,3.1336,3721.0,3720.5,3.16009351]
[1753203409758,2.82105719,3721.0,3720.5,0.4723]
[1753203409959,2.68730532,3721.2,3720.6,3.16002244]
[1753203410123,3.0,3721.1,3720.6,3.29362244]
[1753203410318,3.1336,3721.2,3720.7,0.4723]
[1753203410518,3.1336,3721.2,3720.8,0.4723]
[1753203411055,5.82091764,3721.2,3720.8,0.4723]
[1753203411747,3.1336,3721.2,3720.8,0.4723]
[1753203412329,3.0,3721.3,3720.9,0.4723]
[1753203412562,3.0,3721.3,3721.0,0.4723]
[1753203412927,4.174,3721.4,3721.1,0.4723]
[1753203413227,5.68727677,3721.3,3720.9,0.1336]
[1753203413432,3.0,3721.2,3720.9,0.1336]
[1753203413663,3.0,3721.3,3720.9,0.1336]
[1753203413965,3.0,3721.5,3720.9,0.6059]
[1753203414160,3.0,3721.3,3720.9,3.29339266]
[1753203414364,3.0,3721.3,3720.9,0.6059]
[1753203414561,3.0,3721.3,3721.0,2.68738661]
[1753203414752,4.174,3721.4,3721.2,2.68725323]
[1753203414958,4.174,3721.4,3721.2,3.15955323]
[1753203415265,0.002,3721.8,3721.2,0.59805398]
[1753203415462,0.002,3721.8,3721.3,1.274]
[1753203415650,0.002,3721.8,3721.4,2.68711078]
[1753203416457,0.002,3721.8,3721.4,3.15945297]
[1753203416764,0.002,3721.8,3721.5,2.68704408]
[1753203416967,0.002,3721.8,3721.4,0.4723]
[1753203417262,0.002,3721.8,3721.3,0.8017]
[1753203417465,2.82247447,3721.8,3721.3,0.8017]
[1753203417666,2.82247447,3721.8,3720.9,4.174]
[1753203417667,3.0,3721.1,3720.1,0.7555]
[1753203417865,3.0,3721.1,3719.7,0.4723]
[1753203417866,3.0,3720.9,3719.8,0.7555]
[1753203418177,2.68779905,3720.6,3719.9,2.68823042]
[1753203418334,2.68779905,3720.6,3719.9,3.34867183]
[1753203418529,2.68793218,3720.4,3719.9,0.66044141]
[1753203418732,2.68783289,3720.5,3719.9,0.66044141]
[1753203418955,2.68788879,3720.4,3719.9,0.66044141]
[1753203419158,2.7145977,3720.6,3719.9,0.66044141]
[1753203419329,2.7145977,3720.6,3719.4,0.001]
[1753203419330,4.6207,3720.5,3719.4,0.001]
[1753203419532,0.02685805,3720.4,3719.5,2.68848407]
[1753203419764,0.02685805,3720.4,3719.6,2.68845551]
[1753203419929,2.68796648,3720.3,3719.4,0.001]
[1753203420133,0.02685805,3720.4,3719.4,0.001]
[1753203420333,2.68830972,3719.9,3719.4,0.001]
[1753203420634,3.02685805,3719.8,3719.4,0.001]
[1753203420943,3.45775805,3719.8,3719.4,0.001]
[1753203421130,2.6885334,3719.5,3719.4,0.001]
[1753203421558,0.4309,3719.5,3719.4,0.001]
[1753203421759,3.1194334,3719.5,3719.4,0.001]
[1753203421977,0.4309,3719.5,3719.4,0.001]
[1753203422180,3.0,3719.9,3719.4,0.4733]
[1753203422354,4.20585805,3719.8,3719.4,0.001]
[1753203422545,2.68844277,3719.7,3719.4,0.001]
[1753203423388,0.4417,3720.1,3719.5,0.4723]
[1753203423551,4.178,3719.8,3719.5,0.4723]
[1753203424171,6.86633621,3719.8,3719.4,0.001]
[1753203424373,4.178,3719.8,3719.4,0.001]
[1753203425185,6.86645979,3719.7,3719.4,0.001]
[1753203425364,2.68845979,3719.7,3719.4,0.001]
[1753203425559,2.68847611,3719.6,3719.4,0.001]
[1753203425945,5.6885334,3719.5,3719.4,0.001]
[1753203426187,6.5611334,3719.5,3719.4,0.001]
[1753203428153,21.0611334,3719.5,3719.4,0.001]
[1753203429800,6.1302334,3719.5,3719.4,0.001]
[1753203430114,10.3062334,3719.5,3719.4,0.001]
[1753203431388,10.7371334,3719.5,3719.4,0.001]
[1753203433610,6.1302334,3719.5,3719.4,0.001]
[1753203433793,10.7371334,3719.5,3719.4,0.001]
[1753203436674,24.8062334,3719.5,3719.4,0.001]
[1753203437064,25.2371334,3719.5,3719.4,0.001]
[1753203437997,24.8062334,3719.5,3719.4,0.001]
[1753203438477,25.2490334,3719.5,3719.4,0.001]
[1753203439979,10.7490334,3719.5,3719.4,0.001]
[1753203440378,25.2490334,3719.5,3719.4,0.001]
[1753203442317,6.37300568,3719.4,3719.3,1e-08]
[1753203442713,6.81580568,3719.4,3719.3,1e-08]
[1753203442889,11.43350568,3719.4,3719.3,1e-08]
[1753203444116,25.38350568,3719.4,3719.3,1e-08]
[1753203444318,24.94070568,3719.4,3719.3,1e-08]
[1753203444620,25.38350568,3719.4,3719.3,1e-08]
[1753203445121,25.93350568,3719.4,3719.3,1e-08]
[1753203449202,25.93350568,3719.4,3718.6,0.001]
[1753203449203,6.68081178,3718.7,3718.6,1e-08]
[1753203449440,10.85681178,3718.7,3718.6,1e-08]
[1753203449813,25.79961178,3718.7,3718.6,1e-08]
[1753203450038,20.63081178,3718.7,3718.6,1e-08]
[1753203450344,24.80681178,3718.7,3718.6,1e-08]
[1753203450543,20.18911178,3718.7,3718.6,1e-08]
[1753203450742,24.36511178,3718.7,3718.6,1e-08]
[1753203451552,24.80791178,3718.7,3718.6,1e-08]
[1753203452441,25.00632447,3718.7,3718.6,1e-08]
[1753203452824,25.44802447,3718.7,3718.6,1e-08]
[1753203453227,10.94802447,3718.7,3718.6,1e-08]
[1753203453863,25.00522447,3718.7,3718.6,1e-08]
[1753203454242,24.56352447,3718.7,3718.6,1e-08]
[1753203455127,20.18911178,3718.7,3718.6,1e-08]
[1753203455326,20.18911178,3718.7,3718.6,0.43490001]
[1753203455327,6.86511178,3718.7,3718.6,0.43490001]
[1753203455533,2.82351178,3718.7,3718.6,0.43490001]
[1753203455728,9.99951178,3718.7,3718.6,0.43490001]
[1753203456266,10.00051178,3718.7,3718.6,0.43490001]
[1753203456465,10.00051178,3718.7,3718.6,1e-08]
[1753203460180,10.00051178,3718.7,3718.6,0.25092338]
[1753203460999,10.00051178,3718.7,3718.6,0.68582338]
[1753203461209,5.82351178,3718.7,3718.6,0.68582338]
[1753203461366,0.11052046,3719.4,3718.6,1.45472338]
[1753203461571,0.24492046,3719.4,3718.8,0.7689]
[1753203461770,0.24492046,3719.4,3719.1,0.7689]
[1753203461771,4.176,3719.3,3719.1,0.7689]
[1753203462005,6.86467797,3719.3,3719.2,0.68582337]
[1753203462294,7.176,3719.3,3719.2,0.68582337]
[1753203462499,3.0,3719.3,3719.2,0.68582337]
[1753203462651,7.176,3719.3,3719.2,0.68582337]
[1753203463381,9.86467797,3719.3,3719.2,0.68582337]
[1753203463726,11.14449724,3719.3,3719.2,0.25092337]
[1753203466445,2.68890667,3719.0,3718.7,0.4349]
[1753203466640,4.176,3718.9,3718.8,0.25124877]
[1753203467135,4.176,3718.9,3718.8,0.25124813]
[1753203467315,2.68890667,3719.0,3718.8,0.2512504]
[1753203467526,4.176,3718.9,3718.6,0.76890001]
[1753203467836,0.11052046,3719.4,3718.8,3.45208927]
[1753203468135,4.176,3719.3,3718.9,0.71395044]
[1753203468332,4.176,3719.3,3719.0,0.25125044]
[1753203468530,4.176,3719.3,3719.1,0.25125044]
[1753203468732,4.176,3719.3,3719.2,0.25125044]
[1753203468903,4.176,3719.3,3719.2,0.71395044]
[1753203469100,0.11052046,3719.4,3719.2,0.71395044]
[1753203469326,0.11052046,3719.4,3719.3,1.05422557]
[1753203469505,7.28652046,3719.4,3719.3,0.71395044]
[1753203469864,9.97512614,3719.4,3719.3,0.71395044]
[1753203470133,9.97512614,3719.4,3719.3,0.25125044]
[1753203472658,9.97512614,3719.4,3718.6,1e-08]
[1753203472659,2.68911178,3718.7,3718.6,1e-08]
[1753203472957,6.99851178,3718.7,3718.6,0.25115486]
[1753203473409,10.96726589,3718.7,3718.6,0.25115486]
[1753203474010,3.0,3719.1,3718.7,0.7614]
[1753203474250,4.178,3719.0,3718.8,0.71385485]
[1753203474445,0.20479805,3720.2,3718.9,0.71385485]
[1753203474611,2.68823423,3720.0,3719.1,3.47232256]
[1753203474819,4.7371062,3719.9,3719.3,2.68863006]
[1753203475018,4.7371062,3719.9,3719.4,3.4024266]
[1753203475251,4.7371062,3719.9,3719.5,0.71385485]
[1753203475413,3.0,3719.8,3719.2,2.6886932]
[1753203475614,7.179,3719.7,3719.6,0.4627]
[1753203475848,3.0,3719.7,3719.6,0.71380196]
[1753203476026,9.86738884,3719.7,3719.6,0.71380196]
[1753203476853,7.179,3719.7,3719.6,0.71380196]
[1753203477349,9.86738884,3719.7,3719.6,0.71380196]
[1753203478449,9.86738884,3719.7,3719.6,0.25110196]
[1753203479042,10.90688887,3719.7,3719.6,0.25110196]
[1753203479233,11.36138887,3719.7,3719.6,0.25110196]
[1753203479914,2.68903947,3718.8,3718.7,0.8278]
[1753203480117,6.86503947,3718.8,3718.7,1.2905]
[1753203481154,5.68911178,3718.7,3718.6,1e-08]
[1753203481854,6.24721798,3718.7,3718.6,1e-08]
[1753203483241,6.70171798,3718.7,3718.6,1e-08]
[1753203483821,6.1308841,3718.6,3718.5,1e-08]
[1753203484051,10.7603841,3718.6,3718.5,1e-08]
[1753203484252,11.79988413,3718.6,3718.5,1e-08]
[1753203484625,0.4417,3717.9,3717.2,0.1344]
[1753203484983,2.69026929,3717.1,3717.0,0.4627]
[1753203485117,2.69026929,3717.1,3716.9,0.8103]
[1753203485118,4.175,3717.1,3716.5,0.9447]
[1753203485321,3.16125805,3717.0,3716.5,0.9447]
[1753203485623,4.175,3716.9,3716.6,0.4627]